[Event "2nd Serbia Open Masters 2022"]
[Site "Novi Sad"]
[Date "2022.07.01"]
[Round "4.45"]
[White "Spasic, Petar"]
[Black "Radovanovic, Nikola"]
[Result "1-0"]
[ECO "A10"]
[WhiteElo "2336"]
[BlackElo "2423"]
[Annotator "TA"]
[PlyCount "119"]
[EventDate "2022.06.28"]
[EventType "swiss"]
[EventCountry "SRB"]
[SourceTitle "playchess.com"]
[Source "ChessBase"]
[SourceQuality "1"]
[TimeControl "40/5400+30:900+30"]

{[%evp 9,119,37,35,47,56,46,51,65,91,72,87,74,105,97,147,140,196,199,209,176,178,144,166,160,145,131,133,132,139,129,168,148,189,204,214,199,219,202,245,152,167,145,161,158,147,126,141,79,145,154,270,299,297,287,285,287,256,289,278,139,143,143,140,138,132,135,179,165,295,265,236,203,563,501,5477,4602,2517,8,8,8,8,8,8,8,8,8,8,8,8,0,584,8,606,606,598,592,591,588,576,0,0,0,29977,29978,29978,29979,29980,29981,29983,29982,29988,29989]} 1. c4 {[%emt 0:00:11]} e6 {[%emt 0:00:04]} 2. Nf3 {[%emt 0:00:15]} f5 {[%emt 0:00:09]} 3. g3 {[%emt 0:00:10]} Nf6 {[%emt 0:00:09]} 4. Bg2 {[%emt 0:00:06]} Be7 {[%emt 0:00:17]} 5. O-O {[%emt 0:00:33]} d5 {[%emt 0:00:07]} 6. b3 {[%emt 0:05:53] A10: English Opening: Unusual Replies for Black.} Nc6 {[%emt 0:00:54]} 7. Bb2 {[%emt 0:03:27] [#] Inhibits e5.} d4 $146 {[%emt 0:04:32]} ({Predecessor:} 7... O-O 8. e3 a5 9. Nc3 Ne4 10. Nb5 a4 11. d3 Nc5 12. cxd5 exd5 13. Bc3 axb3 14. axb3 Rxa1 15. Qxa1 {0-1 (75) Agrest,E (2682)-Karlsson,L (2550) Sweden 2005}) 8. e3 {[%emt 0:02:56][%cal Re3d4] White is slightly better.} d3 {[%emt 0:13:08]} 9. Nd4 {[%emt 0:03:56]} Na5 {[%emt 0:09:31]} 10. f4 {[%emt 0:05:34][%cal Bf2f4,Bf4e5][%mdl 32]} c5 {[%emt 0:18:22]} 11. Nf3 {[%emt 0:03:06]} Nc6 {[%emt 0:00:04]} (11... O-O $142) 12. Ne5 $16 {[%emt 0:02:52]} Nxe5 {[%emt 0:01:23]} (12... Nb4 $16) 13. fxe5 $18 {[%emt 0:01:40]} (13. Bxe5 $6 O-O $14) 13... Ng4 {[%emt 0:04:00]} 14. e4 $1 {[%emt 0:05:29]} (14. h3 $6 Nh6 $16) 14... O-O {[%emt 0:19:50]} 15. exf5 {[%emt 0:01:34]} exf5 {[%emt 0:00:06]} 16. Bd5+ {[%emt 0:01:58]} Kh8 {[%emt 0:00:10]} 17. h3 {[%emt 0:00:57]} Nh6 {[%emt 0:00:46][%cal Of5f4]} 18. Qf3 $36 {[%emt 0:03:43][%csl LRb7,LRd3][%mdl 2048] White is in control.} a5 {[%emt 0:09:54]} 19. Nc3 {[%emt 0:06:30]} Ra6 {[%emt 0:00:14]} 20. Qxd3 {[%emt 0:00:23]} (20. Bxb7 $6 Bxb7 21. Qxb7 Rg6 $16) 20... Rg6 {[%emt 0:02:03]} 21. Ne2 {[%emt 0:00:29]} Bh4 {[%emt 0:02:37][%cal Oh4g3]} 22. Rf3 {[%emt 0:03:48]} f4 {[%emt 0:06:41]} 23. Be4 {[%emt 0:08:09]} Qxd3 {[%emt 0:00:51]} 24. Bxd3 {[%emt 0:01:16]} Rg5 {[%emt 0:01:24]} 25. Kg2 {[%emt 0:07:06] And now Raf1 would win.} (25. Rxf4 Rxf4 26. Nxf4 Rxg3+ 27. Ng2 Rxd3 $15) 25... Bxg3 {[%emt 0:02:34]} 26. Nxg3 {[%emt 0:00:06]} Rxg3+ {[%emt 0:00:02]} 27. Rxg3 {[%emt 0:00:08]} fxg3 {[%emt 0:00:04]} 28. Kxg3 {[%emt 0:01:24]} (28. Be4 $142) 28... Rd8 {[%emt 0:01:50]} (28... Nf5+ $142 29. Bxf5 Rxf5) 29. Be4 $16 {[%emt 0:00:13]} Rxd2 {[%emt 0:01:01] [#]} (29... Nf5+ $16 30. Kf3 Be6) 30. Rf1 $1 $18 {[%emt 0:00:44] Strongly threatening Rf8+.} Rd8 {[%emt 0:00:45] Inhibits Rf8+.} 31. Bc1 {[%emt 0:00:43] This bishop pair is nice.} Re8 {[%emt 0:01:54]} 32. Bxh6 {[%emt 0:02:30]} gxh6 {[%emt 0:00:01][%mdl 4096] Endgame KRB-KRB} 33. Rf7 {[%emt 0:00:34][%csl LRb7,LRh7]} Rxe5 {[%emt 0:01:02]} 34. Rf8+ {[%emt 0:01:49]} (34. Rxh7+ $6 Kg8 $16) (34. Bxh7 b6 $16) (34. Bxb7 Rg5+ 35. Kh4 Rf5 $16) (34. Kf4 $18 Kg8 35. Rc7 (35. Kxe5 Kxf7 36. h4 Ke8 $18)) 34... Kg7 $16 {[%emt 0:00:09]} 35. Rxc8 {[%emt 0:00:03] White is more active.} Rxe4 {[%emt 0:00:07]} 36. Rxc5 {[%emt 0:00:03] KR-KR} b6 {[%emt 0:01:12]} 37. Rc7+ {[%emt 0:01:25]} Kg8 {[%emt 0:00:06]} 38. Rc6 {[%emt 0:00:58]} Re2 {[%emt 0:00:10]} (38... Re3+ $142 39. Kg4 h5+ 40. Kh4 (40. Kxh5 Rxh3+ 41. Kg5 Rh2 $16) 40... a4) 39. Rxb6 $18 {[%emt 0:02:01]} Rxa2 {[%emt 0:00:05]} 40. Kf4 $1 {[%emt 0:00:00]} ({Inferior is} 40. Rxh6 Ra3 $14) 40... Rh2 $2 {[%emt 0:00:00]} (40... a4 {is tougher.} 41. Ke5 a3) 41. Ke5 {[%emt 0:21:36] Hoping for c5.} Rxh3 {[%emt 0:02:40]} (41... Kf8 $142 42. Rxh6 Kg7) 42. c5 {[%emt 0:00:18]} Kf7 {[%emt 0:02:58] [#]} 43. Rb7+ $2 {[%emt 0:01:51]} ({White has to play} 43. Kd6 $1 $18 Rd3+ 44. Kc7) 43... Ke8 $11 {[%emt 0:02:27]} 44. Kd6 {[%emt 0:06:08]} Rd3+ {[%emt 0:01:09]} 45. Kc7 {[%emt 0:00:20] Black must now prevent c6.} h5 {[%emt 0:01:38]} 46. c6 {[%emt 0:00:20] White wants to mate with Kb8.} Rc3 $1 {[%emt 0:01:36]} 47. b4 {[%emt 0:05:48]} axb4 {[%emt 0:00:37]} 48. Rxb4 {[%emt 0:00:04] Threatens to win with Rh4.} Kf7 {[%emt 0:02:52]} 49. Kb6 {[%emt 0:01:20]} h4 $2 {[%emt 0:04:45][%mdl 8192]} (49... Kf6 $11 {and Black stays safe.}) 50. c7 $2 {[%emt 0:03:54]} ({White must play} 50. Rxh4 $18 Rb3+ 51. Kc7) 50... h3 $2 {[%emt 0:00:30][%mdl 8192]} (50... Kg6 $11) 51. Rh4 $18 {[%emt 0:00:05]} Rb3+ {[%emt 0:00:43]} 52. Ka5 {[%emt 0:01:09]} Rc3 {[%emt 0:00:45] [#]} 53. Rxh3 $3 {[%emt 0:00:24][%mdl 512]} Rc1 {[%emt 0:00:30] [#]} (53... Rxh3 54. c8=Q) 54. Rxh7+ $2 {[%emt 0:00:08]} (54. Rh1 $3 $18 {[%mdl 512]} Rxh1 55. c8=Q Rh5+ 56. Kb6) 54... Ke6 $11 {[%emt 0:00:26]} 55. Kb6 {[%emt 0:00:14][%cal Oh7h1] Rh1! would kill now.} Kd6 $2 {[%emt 0:00:30][%mdl 8192]} (55... Rb1+ $11 56. Kc6 Rc1+ 57. Kb7 Rb1+ 58. Kc8 Rb4) 56. Kb7 {[%emt 0:00:48] White mates.} Rb1+ {[%emt 0:00:19]} 57. Kc8 {[%emt 0:00:08]} Rg1 {[%emt 0:00:39]} 58. Rh6+ {[%emt 0:00:34]} Kc5 {[%emt 0:00:35]} 59. Kb7 {[%emt 0:00:12]} Rb1+ {[%emt 0:00:11]} 60. Ka7 {[%emt 0:00:06] Weighted Error Value: White=0.36/Black=0.61} 1-0

[Event "2nd Serbia Open Masters 2022"]
[Site "Novi Sad"]
[Date "2022.07.01"]
[Round "4.46"]
[White "Srija, Seshadri"]
[Black "Salimova, Nurgyul"]
[Result "1-0"]
[ECO "B12"]
[WhiteElo "2241"]
[BlackElo "2418"]
[Annotator "TA"]
[PlyCount "107"]
[EventDate "2022.06.28"]
[EventType "swiss"]
[EventCountry "SRB"]
[SourceTitle "playchess.com"]
[Source "ChessBase"]
[SourceQuality "1"]
[TimeControl "40/5400+30:900+30"]

{[%evp 10,107,16,0,2,-6,31,8,9,16,10,15,71,78,70,67,87,62,58,54,51,35,41,31,36,31,31,37,41,37,36,26,32,13,24,25,24,0,11,0,74,91,86,68,59,72,59,0,0,0,54,0,152,123,100,128,141,126,142,143,158,143,152,153,236,193,185,142,178,122,137,124,245,237,229,220,297,213,302,311,324,318,508,508,1437,1418,1361,1339,1330,1244,5173,4914,29983,29984,29996,29997,29997,29998,29998,29999]} 1. e4 {[%emt 0:00:04]} c6 {[%emt 0:07:33]} 2. d4 {[%emt 0:00:17]} d5 {[%emt 0:01:00]} 3. e5 {[%emt 0:00:14]} Bf5 {[%emt 0:00:07]} 4. c4 {[%emt 0:00:12]} e6 {[%emt 0:00:24]} 5. Nc3 {[%emt 0:00:10]} Ne7 {[%emt 0:01:15]} 6. a3 {[%emt 0:01:06]} Nd7 {[%emt 0:00:48] B12: Caro-Kann: Advance Variation.} 7. c5 {[%emt 0:00:15]} h6 {[%emt 0:01:20]} 8. f4 {[%emt 0:01:27]} a5 {[%emt 0:04:16] The position is equal.} 9. Be3 {[%emt 0:01:07]} b6 {[%emt 0:03:18]} 10. b4 {[%emt 0:00:31] [#]} bxc5 $146 {[%emt 0:00:21]} (10... g5 $11) ({Predecessor:} 10... axb4 11. axb4 Rxa1 12. Qxa1 bxc5 13. bxc5 f6 14. Nf3 g5 15. exf6 Nxf6 16. fxg5 Ng4 {½-½ (24) Brestian,E (2392)-Klings,P (2152) Triesen 2009}) 11. bxc5 $16 {[%emt 0:01:31]} Rb8 {[%emt 0:00:55]} 12. Nf3 {[%emt 0:05:47]} Bg4 {[%emt 0:08:14]} 13. Be2 {[%emt 0:04:10]} Nf5 {[%emt 0:02:14]} 14. Bf2 {[%emt 0:02:00]} g5 {[%emt 0:10:15]} 15. Qa4 {[%emt 0:12:05]} Qc7 {[%emt 0:05:39]} 16. h3 {[%emt 0:06:18]} ({But not} 16. fxg5 Bxf3 17. Bxf3 hxg5 $15) 16... Bxf3 {[%emt 0:00:27]} 17. Bxf3 {[%emt 0:00:07]} gxf4 {[%emt 0:01:43][%cal Od7e5] [#] ...Nxe5! is the strong threat.} 18. O-O {[%emt 0:00:18]} Be7 {[%emt 0:00:59]} 19. Ne2 {[%emt 0:04:48]} Bg5 {[%emt 0:01:19]} 20. Bg4 {[%emt 0:00:48] And now Bxf5 would win.} Ne3 {[%emt 0:09:02]} 21. Bxe3 {[%emt 0:01:07]} fxe3 {[%emt 0:00:02]} 22. Qc2 {[%emt 0:04:50]} O-O {[%emt 0:01:43]} 23. Qc3 {[%emt 0:16:23]} (23. Rad1 $5 {[%cal Rg4h5]}) 23... Kh8 {[%emt 0:08:00]} 24. Nf4 {[%emt 0:09:02]} Bxf4 {[%emt 0:05:21]} (24... Nf6 $1 $11 {keeps the balance.}) 25. Rxf4 {[%emt 0:00:06] Threatens to win with Raf1.} f5 {[%emt 0:00:11]} 26. Be2 {[%emt 0:04:32]} Qd8 {[%emt 0:00:38] Inhibits Rh4.} 27. Qxe3 {[%emt 0:00:58][%cal Of4g4]} Qg5 {[%emt 0:00:21] Inhibits Rg4.} 28. Raf1 {[%emt 0:01:02]} (28. h4 $1 $14 Qg7 29. Bd1) 28... Rg8 $1 $11 {[%emt 0:01:58][%csl Gg8][%cal Rg5g2]} 29. R1f2 {[%emt 0:01:43]} a4 {[%emt 0:03:26]} (29... Nf8 $11) 30. R4f3 {[%emt 0:03:57]} ({Better is} 30. h4 $14 Rb1+ 31. Kh2) 30... Qg7 $2 {[%emt 0:02:04]} (30... Rb1+ $11 31. Kh2 Nf8) 31. Qc1 {[%emt 0:02:25]} Nf8 {[%emt 0:03:09]} 32. Bd1 {[%emt 0:02:27] Inhibits Rb3.} Ra8 {[%emt 0:00:51]} 33. Rb2 {[%emt 0:03:10]} Nh7 {[%emt 0:00:49]} 34. h4 {[%emt 0:00:39]} Nf8 {[%emt 0:02:55]} 35. Kh2 {[%emt 0:01:23] White is more active.} Ra7 {[%emt 0:07:18]} 36. Qd2 {[%emt 0:01:51]} Qg4 {[%emt 0:05:05]} (36... Kh7 $16 37. Rb6 Qc7) 37. Rh3 {[%emt 0:01:52]} (37. Qxh6+ Rh7 38. Qf6+ Rhg7 $11) 37... Qg6 {[%emt 0:00:25]} 38. Kh1 {[%emt 0:02:13]} Qh7 {[%emt 0:02:11]} 39. Qc2 {[%emt 0:03:04]} (39. Rb6 $18) 39... Ng6 {[%emt 0:00:30]} 40. Qc1 {[%emt 0:00:00] Inhibits Nf4.} Rag7 {[%emt 0:00:00]} (40... h5 $16 41. Rg3 (41. Qg5 Rf7 $16) 41... f4) 41. Bxa4 $18 {[%emt 0:02:39]} Ne7 {[%emt 0:02:18] [#]} 42. Bd1 {[%emt 0:01:22][%cal Ba4d1,Bd1h5,Bh5f7,Bf7g8,Bg8e6][%mdl 32] Inhibits Rg4.} f4 {[%emt 0:02:46]} 43. Qxf4 {[%emt 0:03:06] Hoping for Qf6.} Rf7 {[%emt 0:01:35]} (43... Nf5 {was necessary.} 44. Kh2 Ng3) 44. Qd2 {[%emt 0:00:08]} Qg7 {[%emt 0:01:11]} 45. Kh2 {[%emt 0:01:49]} Nf5 {[%emt 0:00:43]} (45... Rf1 $142 46. Bg4 Nf5 47. Bxf5 exf5) 46. Bh5 {[%emt 0:00:38]} Ng3 {[%emt 0:03:13]} (46... Ra7 $142 47. g4 Ra4) 47. Bxf7 {[%emt 0:02:18]} Nf1+ {[%emt 0:00:05]} 48. Kg1 {[%emt 0:00:23] White threatens Qf4 and mate.} Nxd2 {[%emt 0:00:12]} 49. Bxg8 {[%emt 0:00:04]} Ne4 {[%emt 0:07:02]} 50. Rb8 {[%emt 0:00:49]} Qa7 {[%emt 0:00:05]} 51. Rhb3 {[%emt 0:00:33] White mates.} Qa5 {[%emt 0:01:01]} 52. Bxe6+ {[%emt 0:00:22]} Kg7 {[%emt 0:00:28]} 53. Rg8+ {[%emt 0:00:07]} Kh7 {[%emt 0:00:04]} 54. Rb7+ {[%emt 0:00:01] Weighted Error Value: White=0.11 (very precise) /Black=0.39} 1-0

[Event "2nd Serbia Open Masters 2022"]
[Site "Novi Sad"]
[Date "2022.07.01"]
[Round "4.47"]
[White "Popvasilev, Kaloyan"]
[Black "Perunovic, Miodrag"]
[Result "0-1"]
[ECO "B56"]
[WhiteElo "2192"]
[BlackElo "2413"]
[Annotator "TA"]
[PlyCount "92"]
[EventDate "2022.06.28"]
[EventType "swiss"]
[EventCountry "SRB"]
[SourceTitle "playchess.com"]
[Source "ChessBase"]
[SourceQuality "1"]
[TimeControl "40/5400+30:900+30"]

{[%evp 18,92,26,0,0,-7,-4,-3,-6,-6,-8,0,-14,-26,-19,-157,-153,-161,-164,-148,-145,-141,-158,-141,-121,-118,-119,-125,-108,-106,-105,-122,-110,-113,-94,-102,-64,-72,-65,-66,-73,-70,-68,-65,-65,-65,-65,-78,-78,-29979,-29980,-29980,376,-29981,-29982,-29985,-29986,-29986,-29985,-29985,-29974,-29974,-29974,-29960,-5281,-1860,-1831,-1441,-591,-1367,-1366,-29977,-29978,-29988,-29989,-29992,-29990]} 1. e4 {[%emt 0:01:11]} c5 {[%emt 0:00:28]} 2. Nf3 {[%emt 0:00:10]} d6 {[%emt 0:00:03]} 3. d4 {[%emt 0:00:23]} cxd4 {[%emt 0:00:03]} 4. Nxd4 {[%emt 0:00:08]} Nf6 {[%emt 0:00:06]} 5. Nc3 {[%emt 0:00:18]} Nc6 {[%emt 0:00:06]} 6. f3 {[%emt 0:02:12]} e5 {[%emt 0:00:09]} 7. Nb3 {[%emt 0:00:23]} Be7 {[%emt 0:00:03]} 8. Be3 {[%emt 0:02:18]} O-O {[%emt 0:00:04]} 9. Qd2 {[%emt 0:04:02]} Be6 {[%emt 0:00:02]} 10. Nd5 {[%emt 0:09:29]} a5 {[%emt 0:00:06][%cal Ba7a5,Ba5a4][%mdl 32] B56: Classical Sicilian: Unusual Lines.} 11. c4 {[%emt 0:13:47]} a4 {[%emt 0:00:01]} 12. Nc1 {[%emt 0:00:30]} b5 $1 {[%emt 0:00:01][%mdl 4] The position is equal. outshines the older 12...Nd7.} 13. cxb5 {[%emt 0:10:36]} Bxd5 {[%emt 0:00:02]} 14. exd5 {[%emt 0:00:34]} Nd4 {[%emt 0:00:01]} 15. Bc4 {[%emt 0:19:50]} Qc8 {[%emt 0:08:55]} 16. b3 {[%emt 0:00:13]} (16. Qd3 $11) 16... axb3 $17 {[%emt 0:01:54][%mdl 64] Remove Defender. 0x0.001764b76533dp-1022s more active pieces.} 17. Bxb3 {[%emt 0:00:06]} Nxb3 {[%emt 0:06:02][%mdl 64] Remove Defender} (17... Nxb5 18. Ne2 $11) 18. Nxb3 {[%emt 0:00:04]} Qc4 $1 {[%emt 0:00:05][%csl LRb5,LRd5]} 19. Na5 {[%emt 0:11:55]} Qxb5 {[%emt 0:00:02]} 20. Nc6 {[%emt 0:00:06]} Bd8 {[%emt 0:00:12] [#]} 21. Nxd8 $146 {[%emt 0:02:56]} ({Predecessor:} 21. Bg5 Ba5 22. Nxa5 Rxa5 23. Bxf6 gxf6 24. Qh6 Qd3 25. Kf2 Qc2+ 26. Kg3 Qg6+ 27. Qxg6+ hxg6 {½-½ (59) Stany,G (2517)-Dhananjay,S (2310) Guwahati 2022}) 21... Rfxd8 {[%emt 0:01:08]} (21... Raxd8 $6 22. a4 Qxd5 23. a5 $11) 22. Bg5 {[%emt 0:00:07]} Rdc8 {[%emt 0:02:53][%cal Bd8c8,Bc8c4,Bc4d4][%mdl 32]} 23. Bxf6 {[%emt 0:00:11]} gxf6 {[%emt 0:00:02]} 24. Kf2 {[%emt 0:05:38]} Rc4 {[%emt 0:01:35]} 25. Rhc1 {[%emt 0:08:25]} Rd4 {[%emt 0:15:39]} 26. Qh6 {[%emt 0:00:48]} Qb6 {[%emt 0:11:12]} ({Don't play} 26... Rxd5 $6 27. Qxf6 (27. Kg3 e4 $17) 27... Rd2+ 28. Kg3 $11) 27. Kg3 {[%emt 0:01:19][%cal Bf2g3,Bg3h3,Bh3h4][%mdl 32]} Rf4 $1 {[%emt 0:01:18]} 28. Rc3 {[%emt 0:02:22] Inhibits Qe3.} Kh8 $1 {[%emt 0:11:19]} 29. Rac1 {[%emt 0:00:25]} Rg8+ {[%emt 0:00:01]} 30. Kh3 {[%emt 0:00:05]} Qf2 {[%emt 0:02:11][%csl Gg8][%cal Rf2g2]} 31. R1c2 $1 {[%emt 0:00:07]} Qf1 {[%emt 0:00:46] Threatens to win with ...Qb5.} 32. a4 {[%emt 0:05:13] Prevents Qb5. Black keeps a firm grip on the game.} Qd1 $40 {[%emt 0:14:31][%mdl 128] Black is out for blood.} 33. Rc4 $2 {[%emt 0:00:34][%mdl 8192] [#]} (33. Rc8 Rxf3+ $1 {[%mdl 512]} 34. g3 Qf1+ 35. Kh4 Rfxg3 $3 {[%mdl 512]} 36. Rxg8+ Rxg8 37. Qe3 Qd1 38. Qe2 Qd4+ 39. Kh3 Qxd5 40. Rc3 Qe6+ 41. Kh4 Rg6 42. Qc4 Rh6+ 43. Kg3 Qh3+ 44. Kf2 Qxh2+ 45. Ke1 Qh1+ 46. Kd2 Rh2+ 47. Qe2 Rxe2+ 48. Kxe2 Qg2+ 49. Kd1 Qg4+ 50. Kc1 Qxa4 51. Rh3 f5 52. Re3 f4 53. Rc3 f3 54. Kb2 Qd4 55. Kb3 Qd1+ 56. Kb2 f2 57. Rc8+ Kg7 58. Rc1 Qd2+ 59. Kb1 e4 60. Rf1 e3) (33. g3 $17 Rxf3 34. Rxf3 (34. Rc8 $2 Qf1+ 35. Kh4 Rfxg3 $19) 34... Qxf3 35. Rb2) 33... Rxf3+ $1 {[%emt 0:10:42][%mdl 512]} 34. gxf3 {[%emt 0:00:04]} Qxf3+ {[%emt 0:00:06]} 35. Kh4 {[%emt 0:00:03][%cal Oc2e2] [#] Strongly threatening Re2!} e4 $1 {[%emt 0:00:24][%csl Gg8][%cal Rf3g4]} 36. Qh5 {[%emt 0:00:20]} Qf4+ {[%emt 0:00:08]} 37. Kh3 {[%emt 0:00:05]} Qf1+ {[%emt 0:06:39]} 38. Kh4 {[%emt 0:00:07]} Rg5 {[%emt 0:03:39]} 39. Qxg5 {[%emt 0:02:21]} fxg5+ {[%emt 0:00:11]} 40. Kxg5 {[%emt 0:00:00] KQ-KRR} f6+ {[%emt 0:00:00]} 41. Kh4 {[%emt 0:04:02]} Qf4+ {[%emt 0:03:58]} 42. Kh3 {[%emt 0:00:06]} Qf3+ {[%emt 0:00:14]} 43. Kh4 {[%emt 0:00:11]} Kg7 {[%emt 0:02:39] ( -> ...f5)} 44. R2c3 {[%emt 0:05:22]} e3 {[%emt 0:01:22] Black mates.} 45. Rc7+ {[%emt 0:01:37]} Kg6 {[%emt 0:01:58]} 46. Re7 {[%emt 0:00:05]} Kf5 {[%emt 0:00:45] Weighted Error Value: White=0.45/Black=0.03 (flawless)} 0-1

[Event "2nd Serbia Open Masters 2022"]
[Site "Novi Sad"]
[Date "2022.07.01"]
[Round "4.48"]
[White "Aakash Sharadchandra, Dalvi"]
[Black "Amartuvshin, Ganzorig"]
[Result "0-1"]
[ECO "E94"]
[WhiteElo "2074"]
[BlackElo "2350"]
[Annotator "TA"]
[PlyCount "78"]
[EventDate "2022.06.28"]
[EventType "swiss"]
[EventCountry "SRB"]
[SourceTitle "playchess.com"]
[Source "ChessBase"]
[SourceQuality "1"]
[TimeControl "40/5400+30:900+30"]

{[%evp 19,78,19,50,49,55,45,66,0,0,0,48,24,29,33,47,35,40,42,33,41,49,60,81,81,82,77,97,55,66,-53,-25,-76,-81,-172,-175,-260,-251,-370,-374,-374,-374,-374,-374,-374,-369,-359,-361,-460,-441,-518,-508,-512,-500,-481,-482,-562,-557,-632,-631,-633,-586]} 1. d4 {[%emt 0:03:03]} Nf6 {[%emt 0:02:14]} 2. c4 {[%emt 0:00:37]} g6 {[%emt 0:00:10]} 3. Nc3 {[%emt 0:00:12]} Bg7 {[%emt 0:00:06]} 4. e4 {[%emt 0:00:06]} d6 {[%emt 0:00:09]} 5. Nf3 {[%emt 0:00:09]} O-O {[%emt 0:00:06]} 6. Be2 {[%emt 0:00:05]} Na6 {[%emt 0:00:11]} 7. O-O {[%emt 0:00:20]} e5 {[%emt 0:00:14]} 8. Be3 {[%emt 0:00:06]} Ng4 {[%emt 0:02:07]} 9. Bg5 {[%emt 0:00:07]} Qe8 {[%emt 0:00:09]} 10. dxe5 {[%emt 0:00:06]} dxe5 {[%emt 0:00:10]} 11. Rb1 {[%emt 0:00:09] [#] E94: King's Indian: Classical: 6 Be2 e5 7 0-0: Various Black 7th moves.} f5 $146 {[%emt 0:16:40]} ({Predecessor:} 11... c6 12. b4 f6 13. Bc1 Nc7 14. b5 Ne6 15. bxc6 bxc6 16. Qa4 Nd4 17. Bd1 Nh6 18. Ba3 Rf7 19. Nxd4 exd4 {1-0 (26) Fichtner,B (2407)-Sandstroem,L (2436) ICCF email 2016}) 12. h3 {[%emt 0:16:35]} Nf6 {[%emt 0:18:02]} 13. Bxf6 {[%emt 0:14:01]} (13. b4 $1 $14) 13... Bxf6 $11 {[%emt 0:56:42]} 14. b4 {[%emt 0:01:31]} Be6 {[%emt 0:18:59]} (14... c6 $11) 15. c5 {[%emt 0:07:16]} Rd8 {[%emt 0:01:01]} 16. Qc2 {[%emt 0:00:22][%cal Oc5c6]} c6 {[%emt 0:38:03]} 17. Bd3 {[%emt 0:16:40]} f4 {[%emt 0:01:32]} 18. Bxa6 {[%emt 0:07:05]} bxa6 {[%emt 0:00:03]} 19. Rfd1 {[%emt 0:00:24]} g5 {[%emt 0:09:33]} 20. Rxd8 $1 {[%emt 0:01:32]} Qxd8 {[%emt 0:00:11]} 21. Rd1 {[%emt 0:00:12]} Qc8 {[%emt 0:00:29]} 22. Rd6 {[%emt 0:11:00] White is more active.} Be7 {[%emt 0:04:16]} 23. Rd2 {[%emt 0:00:52]} ({Much weaker is} 23. Nxe5 Bxd6 24. cxd6 Qb8 $14) 23... Qc7 {[%emt 0:00:49]} 24. Nd5 {[%emt 0:07:32]} cxd5 $15 {[%emt 0:01:12]} 25. exd5 {[%emt 0:00:02]} Bf5 {[%emt 0:00:51]} 26. Qb3 {[%emt 0:00:03]} (26. Qd1 $17 Bf6 27. d6) 26... Bf6 $19 {[%emt 0:01:40]} 27. d6+ {[%emt 0:01:24]} (27. Rd1 {is a better defense.}) 27... Qf7 {[%emt 0:01:03] White must now prevent ...Qxb3.} 28. c6 {[%emt 0:00:24]} (28. d7 $142 e4 29. Ne5 Qxb3 30. axb3) 28... Qxb3 {[%emt 0:02:33]} 29. axb3 {[%emt 0:00:02]} Kf7 {[%emt 0:00:19]} 30. d7 {[%emt 0:02:10]} Ke7 {[%emt 0:00:59]} 31. Rd5 {[%emt 0:00:53]} Kd8 {[%emt 0:00:56]} 32. Nxe5 {[%emt 0:02:54]} Be4 {[%emt 0:01:41]} 33. Rd4 {[%emt 0:00:48]} Bxg2 {[%emt 0:00:46] Black is clearly winning.} ({Stronger than} 33... Bxe5 34. Rxe4 Bd6 35. Kf1 $17) 34. Kxg2 {[%emt 0:03:02] [#] And now Re4 would win.} Bxe5 {[%emt 0:00:06] KRB-KR} 35. Re4 {[%emt 0:00:57]} f3+ {[%emt 0:00:18]} 36. Kf1 {[%emt 0:00:09]} Rf5 {[%emt 0:00:16]} 37. Ke1 {[%emt 0:00:32]} Kc7 {[%emt 0:18:04] Hoping for ...Bf6.} 38. Kd1 {[%emt 0:00:34]} Bf6 {[%emt 0:00:14]} 39. Re6 {[%emt 0:00:33]} Bd8 {[%emt 0:00:07] Weighted Error Value: White=0.36/Black=0.05 (flawless)} 0-1